[Event "Live Chess"]
[Site "Chess.com"]
[Date "2023.05.21"]
[Round "-"]
[White "MarkLim1"]
[Black "manthanit"]
[Result "1-0"]
[WhiteElo "1692"]
[BlackElo "1094"]
[TimeControl "300"]
[EndTime "5:14:29 PDT"]
[Termination "MarkLim1 won by resignation"]

1. d4 {[%clk 0:04:59.6]} 1... e6 {[%clk 0:04:58.8]} 2. Nf3 {[%clk 0:04:58.9]}
2... d6 {[%clk 0:04:58.2]} 3. e4 {[%clk 0:04:57.9]} 3... g6 {[%clk 0:04:56.4]}
4. Nbd2 {[%clk 0:04:57]} 4... Bg7 {[%clk 0:04:56]} 5. Bd3 {[%clk 0:04:56.2]}
5... Ne7 {[%clk 0:04:55]} 6. c3 {[%clk 0:04:55.6]} 6... O-O {[%clk 0:04:53.9]}
7. O-O {[%clk 0:04:53.6]} 7... c5 {[%clk 0:04:50.9]} 8. Re1 {[%clk 0:04:52.4]}
8... cxd4 {[%clk 0:04:48.2]} 9. cxd4 {[%clk 0:04:51.6]} 9... b6 {[%clk
0:04:47.2]} 10. Nf1 {[%clk 0:04:50.8]} 10... Bb7 {[%clk 0:04:46.2]} 11. Bf4
{[%clk 0:04:48.1]} 11... e5 {[%clk 0:04:00.7]} 12. dxe5 {[%clk 0:04:46.7]} 12...
dxe5 {[%clk 0:03:59.2]} 13. Bxe5 {[%clk 0:04:45.8]} 13... Bxe5 {[%clk
0:03:43.8]} 14. Nxe5 {[%clk 0:04:44.9]} 14... Nbc6 {[%clk 0:03:43.4]} 15. Nxc6
{[%clk 0:04:43.8]} 15... Nxc6 {[%clk 0:03:30.4]} 16. Qe2 {[%clk 0:04:39.9]}
16... Nb4 {[%clk 0:03:21.1]} 17. Bc4 {[%clk 0:04:37.6]} 17... Qc7 {[%clk
0:02:59.4]} 18. Rac1 {[%clk 0:04:34.2]} 18... Rac8 {[%clk 0:02:48.5]} 19. a3
{[%clk 0:04:32.7]} 19... Nc6 {[%clk 0:02:23.8]} 20. b4 {[%clk 0:04:30.4]} 20...
Ne5 {[%clk 0:02:19.3]} 21. Bd5 {[%clk 0:04:23.1]} 21... Qd7 {[%clk 0:02:12.1]}
22. Ne3 {[%clk 0:04:13.2]} 22... Bxd5 {[%clk 0:00:59.1]} 23. Nxd5 {[%clk
0:04:13.1]} 23... Rfe8 {[%clk 0:00:44.5]} 24. Nf6+ {[%clk 0:04:11.1]} 1-0

[Event "Live Chess"]
[Site "Chess.com"]
[Date "2023.05.21"]
[Round "-"]
[White "Crowded_House"]
[Black "davigator"]
[Result "0-1"]
[WhiteElo "1616"]
[BlackElo "2326"]
[TimeControl "300"]
[EndTime "5:14:35 PDT"]
[Termination "davigator won by checkmate"]

1. d4 {[%clk 0:04:58.1]} 1... Nf6 {[%clk 0:04:57.7]} 2. Bg5 {[%clk 0:04:57.5]}
2... e6 {[%clk 0:04:56.5]} 3. e3 {[%clk 0:04:56.2]} 3... c5 {[%clk 0:04:55]} 4.
c3 {[%clk 0:04:54.9]} 4... Qb6 {[%clk 0:04:54.5]} 5. Qb3 {[%clk 0:04:52.7]} 5...
Ne4 {[%clk 0:04:54]} 6. Qxb6 {[%clk 0:04:50.3]} 6... axb6 {[%clk 0:04:52.2]} 7.
Bf4 {[%clk 0:04:42.4]} 7... d5 {[%clk 0:04:51.3]} 8. Nd2 {[%clk 0:04:26.3]} 8...
f5 {[%clk 0:04:49.1]} 9. Ngf3 {[%clk 0:04:20.1]} 9... c4 {[%clk 0:04:48.2]} 10.
Bc7 {[%clk 0:04:13.6]} 10... b5 {[%clk 0:04:46.7]} 11. Ne5 {[%clk 0:04:05.3]}
11... Nc6 {[%clk 0:04:45.2]} 12. Nxc6 {[%clk 0:04:03.1]} 12... bxc6 {[%clk
0:04:44.5]} 13. Nxe4 {[%clk 0:03:58.6]} 13... fxe4 {[%clk 0:04:42.6]} 14. Be5
{[%clk 0:03:55.7]} 14... b4 {[%clk 0:04:41.6]} 15. Be2 {[%clk 0:03:46.9]} 15...
bxc3 {[%clk 0:04:39.9]} 16. bxc3 {[%clk 0:03:45.1]} 16... Ra3 {[%clk 0:04:38.4]}
17. Kd2 {[%clk 0:03:40.5]} 17... Rg8 {[%clk 0:04:32.8]} 18. Rhb1 {[%clk
0:03:37.6]} 18... Be7 {[%clk 0:04:30.5]} 19. Rb8 {[%clk 0:03:30.2]} 19... Kd7
{[%clk 0:04:29.2]} 20. f3 {[%clk 0:03:14]} 20... exf3 {[%clk 0:04:26]} 21. Bxf3
{[%clk 0:03:12.5]} 21... g6 {[%clk 0:04:25.3]} 22. Rb2 {[%clk 0:03:05]} 22...
Rf8 {[%clk 0:04:23.3]} 23. Bg7 {[%clk 0:02:59.6]} 23... Rf7 {[%clk 0:04:18.9]}
24. Be5 {[%clk 0:02:58]} 24... Bd6 {[%clk 0:04:17.1]} 25. Bxd6 {[%clk
0:02:56.5]} 25... Kxd6 {[%clk 0:04:16.4]} 26. Rf1 {[%clk 0:02:40.7]} 26... Rfa7
{[%clk 0:04:14.4]} 27. Ra1 {[%clk 0:02:38.4]} 27... e5 {[%clk 0:04:07.9]} 28.
dxe5+ {[%clk 0:02:35.1]} 28... Kxe5 {[%clk 0:04:06.7]} 29. h3 {[%clk 0:02:28.5]}
29... Bf5 {[%clk 0:04:05.2]} 30. g4 {[%clk 0:02:17.4]} 30... Be4 {[%clk
0:04:03.9]} 31. Bxe4 {[%clk 0:02:13.2]} 31... Kxe4 {[%clk 0:04:03.8]} 32. Rc2
{[%clk 0:01:56.9]} 32... Kf3 {[%clk 0:03:58.9]} 33. Rf1+ {[%clk 0:01:53.5]}
33... Kg3 {[%clk 0:03:57.9]} 34. Rf6 {[%clk 0:01:47.4]} 34... R7a6 {[%clk
0:03:52.5]} 35. Rf7 {[%clk 0:01:43.6]} 35... h6 {[%clk 0:03:51.7]} 36. Rf6
{[%clk 0:01:40.2]} 36... c5 {[%clk 0:03:50.5]} 37. Rxa6 {[%clk 0:01:36.5]} 37...
Rxa6 {[%clk 0:03:49.5]} 38. Rb2 {[%clk 0:01:31.3]} 38... Kxh3 {[%clk 0:03:48.3]}
39. Kc1 {[%clk 0:01:23.8]} 39... Kxg4 {[%clk 0:03:46]} 40. Kb1 {[%clk
0:01:23.3]} 40... Kf5 {[%clk 0:03:43.5]} 41. Rd2 {[%clk 0:01:21]} 41... Ke4
{[%clk 0:03:41.5]} 42. Rb2 {[%clk 0:01:14.7]} 42... g5 {[%clk 0:03:39.5]} 43.
Rb5 {[%clk 0:01:14.3]} 43... Rc6 {[%clk 0:03:37.7]} 44. a4 {[%clk 0:01:12.8]}
44... Kxe3 {[%clk 0:03:36.6]} 45. a5 {[%clk 0:01:12]} 45... Kd3 {[%clk
0:03:35.7]} 46. Rb6 {[%clk 0:01:11.3]} 46... Rc7 {[%clk 0:03:34]} 47. a6 {[%clk
0:01:05.8]} 47... Ra7 {[%clk 0:03:33]} 48. Rxh6 {[%clk 0:01:04.7]} 48... Kxc3
{[%clk 0:03:31.7]} 49. Rc6 {[%clk 0:01:01.6]} 49... Kb4 {[%clk 0:03:28.8]} 50.
Rg6 {[%clk 0:00:58.6]} 50... d4 {[%clk 0:03:26.1]} 51. Rb6+ {[%clk 0:00:49.6]}
51... Ka5 {[%clk 0:03:24.5]} 52. Rc6 {[%clk 0:00:47.6]} 52... Kb5 {[%clk
0:03:23.9]} 53. Rg6 {[%clk 0:00:45.6]} 53... Rxa6 {[%clk 0:03:23.2]} 54. Rxg5
{[%clk 0:00:45.2]} 54... c3 {[%clk 0:03:22]} 55. Rg2 {[%clk 0:00:42.8]} 55...
Kc4 {[%clk 0:03:21.1]} 56. Rg4 {[%clk 0:00:41]} 56... Rh6 {[%clk 0:03:18.5]} 57.
Rg2 {[%clk 0:00:37.5]} 57... Kb3 {[%clk 0:03:17.3]} 58. Rg1 {[%clk 0:00:32]}
58... d3 {[%clk 0:03:16.6]} 59. Rg3 {[%clk 0:00:30.1]} 59... Rh1+ {[%clk
0:03:13.7]} 60. Rg1 {[%clk 0:00:28]} 60... Rxg1# {[%clk 0:03:12.3]} 0-1

[Event "Live Chess"]
[Site "Chess.com"]
[Date "2023.05.21"]
[Round "-"]
[White "Doge_Dandolo"]
[Black "BillythekidFellowes"]
[Result "1/2-1/2"]
[WhiteElo "1908"]
[BlackElo "2058"]
[TimeControl "300"]
[EndTime "5:14:43 PDT"]
[Termination "Game drawn by repetition"]

1. Nf3 {[%clk 0:04:56]} 1... Nc6 {[%clk 0:04:59.9]} 2. d4 {[%clk 0:04:51.3]}
2... d5 {[%clk 0:04:57.9]} 3. g3 {[%clk 0:04:40.4]} 3... Nf6 {[%clk 0:04:53.6]}
4. Bg2 {[%clk 0:04:29]} 4... g6 {[%clk 0:04:52.1]} 5. O-O {[%clk 0:04:16.4]}
5... Bg7 {[%clk 0:04:51]} 6. c3 {[%clk 0:04:11.4]} 6... O-O {[%clk 0:04:37.3]}
7. Bg5 {[%clk 0:04:09.1]} 7... h6 {[%clk 0:04:33.2]} 8. Bxf6 {[%clk 0:04:07.3]}
8... Bxf6 {[%clk 0:04:28.6]} 9. Nbd2 {[%clk 0:04:05.3]} 9... Kg7 {[%clk
0:04:25.8]} 10. Qc2 {[%clk 0:04:03.6]} 10... e5 {[%clk 0:04:16.1]} 11. dxe5
{[%clk 0:04:01]} 11... Nxe5 {[%clk 0:04:16]} 12. Nxe5 {[%clk 0:04:00]} 12...
Bxe5 {[%clk 0:04:14.8]} 13. Rad1 {[%clk 0:03:55.1]} 13... c6 {[%clk 0:04:04.2]}
14. Rfe1 {[%clk 0:03:51.4]} 14... Be6 {[%clk 0:03:54.8]} 15. a4 {[%clk
0:03:49.6]} 15... Bf6 {[%clk 0:03:52.6]} 16. Nb3 {[%clk 0:03:42.2]} 16... Re8
{[%clk 0:03:45.6]} 17. e4 {[%clk 0:03:39.4]} 17... Qc7 {[%clk 0:03:38.6]} 18.
exd5 {[%clk 0:03:35.7]} 18... Bxd5 {[%clk 0:03:38.5]} 19. Bxd5 {[%clk
0:03:34.1]} 19... cxd5 {[%clk 0:03:32.5]} 20. Qd2 {[%clk 0:03:22.5]} 20... Qc4
{[%clk 0:03:21.7]} 21. Nd4 {[%clk 0:03:18.8]} 21... Qxa4 {[%clk 0:03:17.5]} 22.
Ra1 {[%clk 0:03:12]} 22... Qc4 {[%clk 0:03:11.9]} 23. b3 {[%clk 0:02:59.2]}
23... Qc5 {[%clk 0:03:06.8]} 24. Rxe8 {[%clk 0:02:43.6]} 24... Rxe8 {[%clk
0:03:03.1]} 25. b4 {[%clk 0:02:37.9]} 25... Qc4 {[%clk 0:02:48.7]} 26. Rxa7
{[%clk 0:02:32.4]} 26... Bxd4 {[%clk 0:02:37.8]} 27. Qxd4+ {[%clk 0:02:26.9]}
27... Qxd4 {[%clk 0:02:36.9]} 28. cxd4 {[%clk 0:02:26.1]} 28... Re4 {[%clk
0:02:36.8]} 29. Rxb7 {[%clk 0:02:25.1]} 29... Rxd4 {[%clk 0:02:25.9]} 30. b5
{[%clk 0:02:22.6]} 30... Rb4 {[%clk 0:02:23.5]} 31. b6 {[%clk 0:02:19.8]} 31...
d4 {[%clk 0:02:21.8]} 32. Kf1 {[%clk 0:02:18.4]} 32... d3 {[%clk 0:02:20.9]} 33.
Rd7 {[%clk 0:02:16.9]} 33... Rb1+ {[%clk 0:02:18]} 34. Kg2 {[%clk 0:02:15.2]}
34... Rxb6 {[%clk 0:02:17.6]} 35. Rxd3 {[%clk 0:02:13.3]} 35... g5 {[%clk
0:02:17.3]} 36. Rd7 {[%clk 0:02:07.3]} 36... Kf6 {[%clk 0:02:13.4]} 37. Rd4
{[%clk 0:02:03.2]} 37... Ke5 {[%clk 0:02:11.8]} 38. Ra4 {[%clk 0:02:00.7]} 38...
f5 {[%clk 0:01:40.2]} 39. f4+ {[%clk 0:01:55.3]} 39... Kf6 {[%clk 0:01:38.7]}
40. fxg5+ {[%clk 0:01:53.6]} 40... hxg5 {[%clk 0:01:38.6]} 41. h4 {[%clk
0:01:51.9]} 41... Rb2+ {[%clk 0:01:37.8]} 42. Kg1 {[%clk 0:01:48.9]} 42... Kg6
{[%clk 0:01:33]} 43. hxg5 {[%clk 0:01:46.5]} 43... Kxg5 {[%clk 0:01:32.9]} 44.
Rf4 {[%clk 0:01:43.8]} 44... Re2 {[%clk 0:01:31.1]} 45. Kf1 {[%clk 0:01:40.6]}
45... Rh2 {[%clk 0:01:30]} 46. Kg1 {[%clk 0:01:39.4]} 46... Re2 {[%clk
0:01:29.2]} 47. Kf1 {[%clk 0:01:38.3]} 47... Rd2 {[%clk 0:01:28.9]} 48. Kg1
{[%clk 0:01:35.3]} 48... Re2 {[%clk 0:01:21.6]} 1/2-1/2

[Event "Live Chess"]
[Site "Chess.com"]
[Date "2023.05.21"]
[Round "-"]
[White "tpm07"]
[Black "The_Straightforward_Rook"]
[Result "1-0"]
[WhiteElo "1938"]
[BlackElo "1881"]
[TimeControl "300"]
[EndTime "5:14:49 PDT"]
[Termination "tpm07 won by resignation"]

1. d4 {[%clk 0:04:57.8]} 1... Nf6 {[%clk 0:04:58.5]} 2. c4 {[%clk 0:04:56.7]}
2... e6 {[%clk 0:04:57.5]} 3. g3 {[%clk 0:04:55.7]} 3... Bb4+ {[%clk 0:04:55.1]}
4. Bd2 {[%clk 0:04:54.1]} 4... a5 {[%clk 0:04:53.9]} 5. Bg2 {[%clk 0:04:49.5]}
5... O-O {[%clk 0:04:51.9]} 6. Nf3 {[%clk 0:04:48.5]} 6... d5 {[%clk 0:04:51.4]}
7. a3 {[%clk 0:04:47.1]} 7... Be7 {[%clk 0:04:47.9]} 8. Bf4 {[%clk 0:04:44.3]}
8... b6 {[%clk 0:04:44.5]} 9. cxd5 {[%clk 0:04:41.4]} 9... exd5 {[%clk
0:04:44.4]} 10. O-O {[%clk 0:04:38.5]} 10... Ba6 {[%clk 0:04:44]} 11. Nc3 {[%clk
0:04:32.7]} 11... Re8 {[%clk 0:04:41.7]} 12. Ne5 {[%clk 0:04:30.7]} 12... Bd6
{[%clk 0:04:37.1]} 13. Re1 {[%clk 0:04:28.2]} 13... h6 {[%clk 0:04:36.1]} 14.
Nxd5 {[%clk 0:04:17.4]} 14... Ra7 {[%clk 0:04:30.6]} 15. Nxf6+ {[%clk
0:04:01.5]} 15... Qxf6 {[%clk 0:04:30.5]} 16. Rc1 {[%clk 0:03:49]} 16... g5
{[%clk 0:04:28.2]} 17. Ng4 {[%clk 0:03:38.5]} 17... Qe6 {[%clk 0:04:17.6]} 18.
Bxd6 {[%clk 0:03:35.4]} 18... cxd6 {[%clk 0:04:17.5]} 19. Ne3 {[%clk 0:03:17.9]}
19... Nd7 {[%clk 0:04:14.9]} 20. Nd5 {[%clk 0:02:54.1]} 20... Nf6 {[%clk
0:03:55]} 21. Nc7 {[%clk 0:02:47.8]} 21... Rxc7 {[%clk 0:03:53.7]} 22. Rxc7
{[%clk 0:02:47.2]} 22... d5 {[%clk 0:03:48.9]} 23. e3 {[%clk 0:02:36.1]} 23...
Ne4 {[%clk 0:03:45]} 24. Qc2 {[%clk 0:02:25.2]} 24... h5 {[%clk 0:03:17.5]} 25.
Qc6 {[%clk 0:02:16.2]} 25... Qf5 {[%clk 0:03:10]} 26. Qxe8+ {[%clk 0:02:11.7]}
26... Kg7 {[%clk 0:03:04.9]} 27. Qe5+ {[%clk 0:02:00.3]} 1-0

[Event "Live Chess"]
[Site "Chess.com"]
[Date "2023.05.21"]
[Round "-"]
[White "LL220284LL"]
[Black "seasidecastle27"]
[Result "0-1"]
[WhiteElo "2314"]
[BlackElo "1874"]
[TimeControl "300"]
[EndTime "5:14:50 PDT"]
[Termination "seasidecastle27 won by checkmate"]

1. c4 {[%clk 0:04:57.4]} 1... e5 {[%clk 0:04:58]} 2. g3 {[%clk 0:04:55.4]} 2...
d6 {[%clk 0:04:56.9]} 3. Bg2 {[%clk 0:04:54.6]} 3... Nf6 {[%clk 0:04:56]} 4. e3
{[%clk 0:04:53.4]} 4... Be7 {[%clk 0:04:55]} 5. Ne2 {[%clk 0:04:52.6]} 5... c6
{[%clk 0:04:53.8]} 6. Nbc3 {[%clk 0:04:50.9]} 6... O-O {[%clk 0:04:52.4]} 7. d4
{[%clk 0:04:50.3]} 7... exd4 {[%clk 0:04:48.2]} 8. Nxd4 {[%clk 0:04:50.2]} 8...
Na6 {[%clk 0:04:37.1]} 9. O-O {[%clk 0:04:47.6]} 9... Nc5 {[%clk 0:04:35.1]} 10.
a3 {[%clk 0:04:44.9]} 10... a5 {[%clk 0:04:32.9]} 11. Bd2 {[%clk 0:04:41.8]}
11... Be6 {[%clk 0:04:22]} 12. b4 {[%clk 0:04:37.1]} 12... axb4 {[%clk 0:04:02]}
13. axb4 {[%clk 0:04:37]} 13... Rxa1 {[%clk 0:03:59.3]} 14. Qxa1 {[%clk
0:04:36.9]} 14... Nd3 {[%clk 0:03:57.3]} 15. Nxe6 {[%clk 0:04:31.6]} 15... fxe6
{[%clk 0:03:55.1]} 16. Ne4 {[%clk 0:04:25.6]} 16... d5 {[%clk 0:03:50.1]} 17.
Nxf6+ {[%clk 0:04:17]} 17... Bxf6 {[%clk 0:03:47.2]} 18. Qa2 {[%clk 0:04:15.7]}
18... Qe7 {[%clk 0:03:36.5]} 19. b5 {[%clk 0:04:11.9]} 19... Ne5 {[%clk
0:03:24.7]} 20. bxc6 {[%clk 0:04:06.9]} 20... bxc6 {[%clk 0:03:23.2]} 21. cxd5
{[%clk 0:04:04.5]} 21... cxd5 {[%clk 0:03:20.1]} 22. Rb1 {[%clk 0:04:03.7]}
22... Nc4 {[%clk 0:03:13.6]} 23. Bb4 {[%clk 0:04:01.7]} 23... Nd6 {[%clk
0:03:06.8]} 24. Qa3 {[%clk 0:03:59.7]} 24... Rd8 {[%clk 0:03:03.4]} 25. Rc1
{[%clk 0:03:57.3]} 25... Qd7 {[%clk 0:03:01.2]} 26. Bh3 {[%clk 0:03:51.6]} 26...
Nc4 {[%clk 0:02:55.2]} 27. Qd3 {[%clk 0:03:50.3]} 27... Ne5 {[%clk 0:02:43.9]}
28. Qd1 {[%clk 0:03:46.3]} 28... Rc8 {[%clk 0:02:34.1]} 29. Rxc8+ {[%clk
0:03:40.6]} 29... Qxc8 {[%clk 0:02:32.4]} 30. Bd6 {[%clk 0:03:40.2]} 30... Nc4
{[%clk 0:02:28.1]} 31. Bf4 {[%clk 0:03:31.3]} 31... Qc6 {[%clk 0:02:21.5]} 32.
e4 {[%clk 0:03:26.7]} 32... dxe4 {[%clk 0:02:12.6]} 33. Bg2 {[%clk 0:03:24.8]}
33... Qd5 {[%clk 0:02:04.3]} 34. Qc2 {[%clk 0:03:18.9]} 34... Qd4 {[%clk
0:01:54.9]} 35. Bxe4 {[%clk 0:03:15.1]} 35... h6 {[%clk 0:01:46.9]} 36. Qa4
{[%clk 0:03:10.5]} 36... Qxe4 {[%clk 0:01:42.6]} 37. h4 {[%clk 0:03:05.4]} 37...
e5 {[%clk 0:01:35.5]} 38. Qe8+ {[%clk 0:03:01.4]} 38... Kh7 {[%clk 0:01:33.3]}
39. h5 {[%clk 0:02:56.4]} 39... Qb1+ {[%clk 0:01:30.2]} 40. Kg2 {[%clk
0:02:53.4]} 40... exf4 {[%clk 0:01:28.5]} 41. gxf4 {[%clk 0:02:53.3]} 41... Nd6
{[%clk 0:01:22.4]} 42. Qe6 {[%clk 0:02:51.5]} 42... Qe4+ {[%clk 0:01:20.1]} 43.
Qxe4+ {[%clk 0:02:49.8]} 43... Nxe4 {[%clk 0:01:19.3]} 44. Kf3 {[%clk
0:02:49.7]} 44... Nd6 {[%clk 0:01:17.6]} 45. Kg4 {[%clk 0:02:49.2]} 45... Kg8
{[%clk 0:01:16.2]} 46. Kf3 {[%clk 0:02:47.9]} 46... Kf7 {[%clk 0:01:15.4]} 47.
Ke3 {[%clk 0:02:47.8]} 47... Ke6 {[%clk 0:01:14.3]} 48. Kf3 {[%clk 0:02:46.8]}
48... Kf5 {[%clk 0:01:13.4]} 49. Kg3 {[%clk 0:02:46.7]} 49... Ne4+ {[%clk
0:01:11.8]} 50. Kf3 {[%clk 0:02:46]} 50... Nc5 {[%clk 0:01:09.3]} 51. Kg3 {[%clk
0:02:45.9]} 51... Ne6 {[%clk 0:01:08]} 52. f3 {[%clk 0:02:45.8]} 52... Nxf4
{[%clk 0:01:06.8]} 53. Kf2 {[%clk 0:02:45]} 53... Nxh5 {[%clk 0:01:05.7]} 54.
Kg2 {[%clk 0:02:44.3]} 54... g5 {[%clk 0:01:04.5]} 55. Kh3 {[%clk 0:02:44.2]}
55... Nf4+ {[%clk 0:01:03.1]} 56. Kh2 {[%clk 0:02:43.9]} 56... h5 {[%clk
0:01:01.4]} 57. Kg3 {[%clk 0:02:43.8]} 57... Ne2+ {[%clk 0:00:59.5]} 58. Kf2
{[%clk 0:02:43.7]} 58... Nd4 {[%clk 0:00:58.5]} 59. Kg1 {[%clk 0:02:43.6]} 59...
Nxf3+ {[%clk 0:00:57.2]} 60. Kg2 {[%clk 0:02:43]} 60... g4 {[%clk 0:00:56.4]}
61. Kg3 {[%clk 0:02:42.4]} 61... Kg5 {[%clk 0:00:54.8]} 62. Kf2 {[%clk
0:02:42.3]} 62... Bd4+ {[%clk 0:00:53.4]} 63. Kg2 {[%clk 0:02:42.2]} 63... h4
{[%clk 0:00:52.2]} 64. Kh1 {[%clk 0:02:41.2]} 64... g3 {[%clk 0:00:50.4]} 65.
Kg2 {[%clk 0:02:40.8]} 65... Kg4 {[%clk 0:00:49.4]} 66. Kf1 {[%clk 0:02:40.7]}
66... h3 {[%clk 0:00:48.2]} 67. Ke2 {[%clk 0:02:40.6]} 67... h2 {[%clk 0:00:46]}
68. Kd3 {[%clk 0:02:40.5]} 68... h1=Q {[%clk 0:00:44.1]} 69. Kc4 {[%clk
0:02:40.4]} 69... Qd1 {[%clk 0:00:42.7]} 70. Kd5 {[%clk 0:02:40.3]} 70... Bf6+
{[%clk 0:00:40.9]} 71. Ke6 {[%clk 0:02:40.2]} 71... Kg5 {[%clk 0:00:38.8]} 72.
Kf7 {[%clk 0:02:40.1]} 72... Qd7+ {[%clk 0:00:37]} 73. Kg8 {[%clk 0:02:40]}
73... Qg7# {[%clk 0:00:35.8]} 0-1

[Event "Live Chess"]
[Site "Chess.com"]
[Date "2023.05.21"]
[Round "-"]
[White "KeithArkell"]
[Black "Berdgross"]
[Result "1-0"]
[WhiteElo "2488"]
[BlackElo "682"]
[TimeControl "300"]
[EndTime "5:14:59 PDT"]
[Termination "KeithArkell won by checkmate"]

1. d4 {[%clk 0:04:57.9]} 1... d5 {[%clk 0:04:58.3]} 2. Nf3 {[%clk 0:04:57]} 2...
e6 {[%clk 0:04:55.6]} 3. c4 {[%clk 0:04:56.1]} 3... dxc4 {[%clk 0:04:53.9]} 4.
e4 {[%clk 0:04:54.6]} 4... Nf6 {[%clk 0:04:49.9]} 5. e5 {[%clk 0:04:50.2]} 5...
Ne4 {[%clk 0:04:47.7]} 6. Bxc4 {[%clk 0:04:48.2]} 6... Bb4+ {[%clk 0:04:42.5]}
7. Nbd2 {[%clk 0:04:47.2]} 7... Nxd2 {[%clk 0:04:38.5]} 8. Bxd2 {[%clk
0:04:45.8]} 8... Bxd2+ {[%clk 0:04:37.5]} 9. Qxd2 {[%clk 0:04:45.1]} 9... Nc6
{[%clk 0:04:34.6]} 10. O-O {[%clk 0:04:41.8]} 10... O-O {[%clk 0:04:32.1]} 11.
d5 {[%clk 0:04:36.6]} 11... exd5 {[%clk 0:04:30.7]} 12. Qxd5 {[%clk 0:04:35.1]}
12... Qxd5 {[%clk 0:04:29.2]} 13. Bxd5 {[%clk 0:04:34.3]} 13... Nb4 {[%clk
0:04:25.9]} 14. Be4 {[%clk 0:04:27.2]} 14... Bg4 {[%clk 0:04:18.6]} 15. a3
{[%clk 0:04:25.9]} 15... Bxf3 {[%clk 0:04:16.5]} 16. Bxf3 {[%clk 0:04:19.7]}
16... Nd3 {[%clk 0:04:09.9]} 17. Bxb7 {[%clk 0:04:16.6]} 17... Rab8 {[%clk
0:04:06.5]} 18. Be4 {[%clk 0:04:15.4]} 18... Nxe5 {[%clk 0:04:02.9]} 19. b4
{[%clk 0:04:13.5]} 19... Rfe8 {[%clk 0:03:49.8]} 20. Rac1 {[%clk 0:04:10.4]}
20... c6 {[%clk 0:03:47.5]} 21. Bxc6 {[%clk 0:04:07.4]} 21... Rec8 {[%clk
0:03:46]} 22. Be4 {[%clk 0:04:02.5]} 22... Rxc1 {[%clk 0:03:42.4]} 23. Rxc1
{[%clk 0:04:01.1]} 23... a6 {[%clk 0:03:31.7]} 24. Bf5 {[%clk 0:03:56]} 24... g6
{[%clk 0:03:26.5]} 25. Rc8+ {[%clk 0:03:54.8]} 25... Rxc8 {[%clk 0:03:22.9]} 26.
Bxc8 {[%clk 0:03:54.3]} 26... Nc6 {[%clk 0:03:09.1]} 27. Bxa6 {[%clk 0:03:50.1]}
27... Na7 {[%clk 0:03:06.5]} 28. b5 {[%clk 0:03:48.7]} 28... Kf8 {[%clk
0:03:01.7]} 29. a4 {[%clk 0:03:46.7]} 29... Ke7 {[%clk 0:02:58.6]} 30. Bb7
{[%clk 0:03:45.9]} 30... Kd6 {[%clk 0:02:53.4]} 31. b6 {[%clk 0:03:45]} 31...
Nc6 {[%clk 0:02:47.5]} 32. Bxc6 {[%clk 0:03:44.1]} 32... Kxc6 {[%clk 0:02:46.6]}
33. a5 {[%clk 0:03:43.5]} 33... Kb7 {[%clk 0:02:45.3]} 34. Kf1 {[%clk
0:03:42.7]} 34... f5 {[%clk 0:02:41.6]} 35. Ke2 {[%clk 0:03:41.9]} 35... Ka6
{[%clk 0:02:36.6]} 36. Ke3 {[%clk 0:03:40.9]} 36... h5 {[%clk 0:02:31.9]} 37. h4
{[%clk 0:03:39.3]} 37... Kxa5 {[%clk 0:02:27.9]} 38. b7 {[%clk 0:03:37.9]} 38...
Kb6 {[%clk 0:02:27]} 39. b8=Q+ {[%clk 0:03:37.2]} 39... Ka6 {[%clk 0:02:25.8]}
40. Kd4 {[%clk 0:03:35.6]} 40... Ka5 {[%clk 0:02:24]} 41. Kc5 {[%clk 0:03:34.7]}
41... Ka4 {[%clk 0:02:19.9]} 42. Qb4# {[%clk 0:03:33.6]} 1-0

[Event "Live Chess"]
[Site "Chess.com"]
[Date "2023.05.21"]
[Round "-"]
[White "GwaryTek"]
[Black "CheckThis4"]
[Result "0-1"]
[WhiteElo "2063"]
[BlackElo "2512"]
[TimeControl "300"]
[EndTime "5:15:10 PDT"]
[Termination "CheckThis4 won on time"]

1. d4 {[%clk 0:04:51]} 1... Nf6 {[%clk 0:04:57.8]} 2. c4 {[%clk 0:04:49.8]} 2...
e6 {[%clk 0:04:57]} 3. Nc3 {[%clk 0:04:49]} 3... Bb4 {[%clk 0:04:56]} 4. Nf3
{[%clk 0:04:48.6]} 4... c5 {[%clk 0:04:50.8]} 5. g3 {[%clk 0:04:44.2]} 5... Nc6
{[%clk 0:04:37.4]} 6. Bg2 {[%clk 0:04:41.2]} 6... Ne4 {[%clk 0:04:29.5]} 7. Bd2
{[%clk 0:04:14.2]} 7... cxd4 {[%clk 0:04:20]} 8. Nxe4 {[%clk 0:04:10.9]} 8... d5
{[%clk 0:04:04]} 9. cxd5 {[%clk 0:04:00.9]} 9... exd5 {[%clk 0:04:03.9]} 10.
Neg5 {[%clk 0:03:52.2]} 10... h6 {[%clk 0:03:59.8]} 11. Nh3 {[%clk 0:03:49.4]}
11... Bc5 {[%clk 0:03:55.5]} 12. Rc1 {[%clk 0:03:46]} 12... Bb6 {[%clk
0:03:54.2]} 13. O-O {[%clk 0:03:29.2]} 13... O-O {[%clk 0:03:53.4]} 14. Nf4
{[%clk 0:03:25.8]} 14... Re8 {[%clk 0:03:52.4]} 15. Nd3 {[%clk 0:03:23.2]} 15...
Bf5 {[%clk 0:03:50.5]} 16. a3 {[%clk 0:03:19.3]} 16... Rc8 {[%clk 0:03:48.5]}
17. b4 {[%clk 0:03:17.9]} 17... a6 {[%clk 0:03:47.1]} 18. Nc5 {[%clk 0:03:17]}
18... Qe7 {[%clk 0:03:43.1]} 19. Re1 {[%clk 0:03:12.9]} 19... Be4 {[%clk
0:03:36.9]} 20. Bf4 {[%clk 0:03:08.4]} 20... Rcd8 {[%clk 0:03:35.4]} 21. Nxd4
{[%clk 0:03:04.5]} 21... g5 {[%clk 0:03:25.5]} 22. Be3 {[%clk 0:02:42]} 22...
Ne5 {[%clk 0:03:17.4]} 23. f3 {[%clk 0:02:18.3]} 23... Bg6 {[%clk 0:03:14.8]}
24. Bf2 {[%clk 0:02:14.6]} 24... Nc4 {[%clk 0:03:12.6]} 25. Rc3 {[%clk
0:02:04.7]} 25... Qf6 {[%clk 0:03:08.6]} 26. e3 {[%clk 0:01:47.8]} 26... Re7
{[%clk 0:03:02.1]} 27. Bf1 {[%clk 0:01:35]} 27... Ne5 {[%clk 0:02:59.1]} 28. Be2
{[%clk 0:01:30.3]} 28... Rde8 {[%clk 0:02:57.5]} 29. Qc1 {[%clk 0:01:04.8]}
29... h5 {[%clk 0:02:51.8]} 30. Na4 {[%clk 0:01:02.8]} 30... Ba7 {[%clk
0:02:40.9]} 31. Rc8 {[%clk 0:00:59.9]} 31... g4 {[%clk 0:02:39.5]} 32. Rxe8+
{[%clk 0:00:58.2]} 32... Rxe8 {[%clk 0:02:38.6]} 33. f4 {[%clk 0:00:47.8]} 33...
Nc6 {[%clk 0:02:33.9]} 34. Nc5 {[%clk 0:00:37.6]} 34... a5 {[%clk 0:02:21.5]}
35. Qd2 {[%clk 0:00:18.2]} 35... axb4 {[%clk 0:02:19.8]} 36. axb4 {[%clk
0:00:18.1]} 36... h4 {[%clk 0:02:12.4]} 37. Ra1 {[%clk 0:00:16.7]} 37... Bb6
{[%clk 0:02:10.9]} 38. Rc1 {[%clk 0:00:13.5]} 38... h3 {[%clk 0:02:05.9]} 39.
Bxg4 {[%clk 0:00:12]} 39... Qe7 {[%clk 0:01:59.5]} 40. Bxh3 {[%clk 0:00:10.8]}
40... Ra8 {[%clk 0:01:43]} 41. f5 {[%clk 0:00:10.1]} 41... Bh7 {[%clk
0:01:40.3]} 42. Qe2 {[%clk 0:00:09.6]} 42... Qg5 {[%clk 0:01:37.1]} 43. Qg4
{[%clk 0:00:07.7]} 43... Qxg4 {[%clk 0:01:34.9]} 44. Bxg4 {[%clk 0:00:07.6]}
44... Nxb4 {[%clk 0:01:33.4]} 45. Nd7 {[%clk 0:00:05.3]} 45... Bxd4 {[%clk
0:01:29.1]} 46. exd4 {[%clk 0:00:03.6]} 46... Nd3 {[%clk 0:01:28.4]} 47. Nf6+
{[%clk 0:00:02.6]} 47... Kg7 {[%clk 0:01:27.2]} 48. Nh5+ {[%clk 0:00:01.9]}
48... Kf8 {[%clk 0:01:24.9]} 49. Rd1 {[%clk 0:00:01.3]} 49... Nxf2 {[%clk
0:01:22.3]} 50. Kxf2 {[%clk 0:00:01.2]} 50... Ra2+ {[%clk 0:01:21.3]} 51. Kf3
{[%clk 0:00:00.6]} 51... Ra3+ {[%clk 0:01:20.6]} 0-1